fUST/lending_fUST_20260503
["ID","MTS","AMOUNT","RATE_DAILY","PERIOD"]
[421511981,1777793438000,-500.0,0.00016235,2]
[421512006,1777793438000,-500.0,0.00016235,2]
[421512004,1777793438000,-500.0,0.00016235,2]
[421512001,1777793438000,-500.0,0.00016235,2]
[421511999,1777793438000,-500.0,0.00016235,2]
[421512009,1777793438000,-500.0,0.00016235,2]
[421512010,1777793438000,-500.0,0.00016235,2]
[421512008,1777793438000,-456.36769868,0.00016235,2]
[421512011,1777793438000,-500.0,0.00016235,2]
[421512012,1777793438000,-500.0,0.00016235,2]
[421512015,1777793438000,-500.0,0.00016235,2]
[421512014,1777793438000,-500.0,0.00016235,2]
[421512017,1777793438000,-500.0,0.00016235,2]
[421512016,1777793438000,-500.0,0.00016235,2]
[421512013,1777793438000,-500.0,0.00016235,2]
[421511995,1777793438000,-500.0,0.00016235,2]
[421511998,1777793438000,-500.0,0.00016235,2]
[421512002,1777793438000,-500.0,0.00016235,2]
[421512003,1777793438000,-500.0,0.00016235,2]
[421511969,1777793438000,-500.0,0.00016235,2]
[421511980,1777793438000,-500.0,0.00016235,2]
[421511996,1777793438000,-500.0,0.00016235,2]
[421511972,1777793438000,-500.0,0.00016235,2]
[421511976,1777793438000,-500.0,0.00016235,2]
[421511977,1777793438000,-500.0,0.00016235,2]
[421511985,1777793438000,-500.0,0.00016235,2]
[421511986,1777793438000,-500.0,0.00016235,2]
[421511989,1777793438000,-154.65328828,0.00016235,2]
[421511974,1777793438000,-500.0,0.00016235,2]
[421511988,1777793438000,-500.0,0.00016235,2]
[421511993,1777793438000,-500.0,0.00016235,2]
[421511994,1777793438000,-500.0,0.00016235,2]
[421511990,1777793438000,-500.0,0.00016235,2]
[421511991,1777793438000,-500.0,0.00016235,2]
[421511983,1777793438000,-500.0,0.00016235,2]
[421511984,1777793438000,-200.65392889,0.00016235,2]
[421511987,1777793438000,-436.0709794,0.00016235,2]
[421511992,1777793438000,-485.82059049,0.00016235,2]
[421511982,1777793438000,-500.0,0.00016235,2]
[421512024,1777793439000,-500.0,0.00016235,2]
[421512032,1777793439000,-500.0,0.00016236,2]
[421512023,1777793439000,-500.0,0.00016235,2]
[421512025,1777793439000,-500.0,0.00016235,2]
[421512026,1777793439000,-500.0,0.00016235,2]
[421512027,1777793439000,-500.0,0.00016235,2]
[421512019,1777793439000,-500.0,0.00016235,2]
[421512021,1777793439000,-500.0,0.00016235,2]
[421512022,1777793439000,-500.0,0.00016235,2]
[421512018,1777793439000,-500.0,0.00016235,2]
[421512020,1777793439000,-500.0,0.00016235,2]
[421512028,1777793439000,-500.0,0.00016235,2]
[421512034,1777793439000,-500.0,0.00016236,2]
[421512030,1777793439000,-500.0,0.00016236,2]
[421512045,1777793439000,-500.0,0.00016236,2]
[421512029,1777793439000,-5000.0,0.00016235,2]
[421512031,1777793439000,-6870.44510464,0.00016236,2]
[421512042,1777793439000,-500.0,0.00016236,2]
[421512040,1777793439000,-500.0,0.00016236,2]
[421512041,1777793439000,-500.0,0.00016236,2]
[421512035,1777793439000,-500.0,0.00016236,2]
[421512043,1777793439000,-500.0,0.00016236,2]
[421512044,1777793439000,-533.14012307,0.00016236,2]
[421512046,1777793439000,-1089236.74887713,0.00016237,2]
[421512039,1777793439000,-500.0,0.00016236,2]
[421512036,1777793439000,-500.0,0.00016236,2]
[421512038,1777793439000,-500.0,0.00016236,2]
[421512037,1777793439000,-268.34391321,0.00016236,2]
[421512033,1777793439000,-290.97088728,0.00016236,2]
[421512071,1777793443000,-420.8168224,0.00016237,2]
[421512108,1777793446000,-1223.92988995,0.00016075,2]
[421512109,1777793457000,8481.72185625,7.6e-05,2]
[421512112,1777793493000,-1000.0,0.00013699,2]
[421512113,1777793511000,-529.0,0.00013699,2]
[421512115,1777794012000,500.81,0.00021918,120]
[421512217,1777794632000,-788.0,0.00010959,2]
[421512209,1777794632000,-2272.52526509,0.00010741,2]
[421512210,1777794632000,-529.0,0.00010741,2]
[421512214,1777794632000,-300.0,0.00010958,2]
[421512208,1777794632000,-2727.47473491,0.00010741,2]
[421512215,1777794632000,-300.0,0.00010958,2]
[421512212,1777794632000,-5000.0,0.00010849,2]
[421512211,1777794632000,-1200.0,0.00010848,2]
[421512213,1777794632000,-300.0,0.00010958,2]
[421512216,1777794632000,-300.0,0.00010958,2]
[421512224,1777794632000,-300.0,0.00011065,2]
[421512222,1777794632000,-300.0,0.00011065,2]
[421512220,1777794632000,-300.0,0.00011065,2]
[421512227,1777794632000,-300.0,0.00011065,2]
[421512228,1777794632000,-300.0,0.00011065,2]
[421512229,1777794632000,-300.0,0.00011065,2]
[421512226,1777794632000,-300.0,0.00011065,2]
[421512223,1777794632000,-300.0,0.00011065,2]
[421512230,1777794632000,-102.79781778,0.00011065,2]
[421512225,1777794632000,-300.0,0.00011065,2]
[421512219,1777794632000,-300.0,0.00011065,2]
[421512221,1777794632000,-300.0,0.00011065,2]
[421512218,1777794632000,-300.0,0.00011065,2]
[421512249,1777794641000,-181.0,0.00012042,2]
[421512240,1777794641000,-927.19930424,0.00010954,2]
[421512242,1777794641000,-300.0,0.00011065,2]
[421512243,1777794641000,-300.0,0.00011065,2]
[421512244,1777794641000,-600.0,0.00011285,2]
[421512241,1777794641000,-197.20218222,0.00011065,2]
[421512245,1777794641000,-276.47450235,0.00011797,2]
[421512246,1777794641000,-1680.0,0.00011933,2]
[421512248,1777794641000,-420.0,0.00012042,2]
[421512247,1777794641000,-332.0,0.00012042,2]
[421512251,1777794641000,-920.0,0.00013126,2]
[421512260,1777794641000,-500.0,0.00014767,2]
[421512254,1777794641000,-1000.0,0.00013699,2]
[421512250,1777794641000,-720.0,0.00012414,2]
[421512252,1777794641000,-587.0,0.00013233,2]
[421512255,1777794641000,-326.23991278,0.00013797,2]
[421512258,1777794641000,-703.0,0.00014543,2]
[421512259,1777794641000,-500.0,0.00014715,2]
[421512256,1777794641000,-714.14790536,0.00014175,2]
[421512257,1777794641000,-250.93973679,0.00014192,2]
[421512261,1777794641000,-1000.0,0.00014833,2]
[421512262,1777794641000,-1240.15786679,0.00014885,2]
[421512253,1777794641000,-864.0,0.00013655,2]
[421512303,1777794643000,-113.7095909,0.00014885,2]
[421512306,1777794643000,-500.0,0.00015382,2]
[421512304,1777794643000,-1000.0,0.00015021,2]
[421512307,1777794643000,-500.0,0.00015382,2]
[421512308,1777794643000,-160.0,0.00015608,2]
[421512305,1777794643000,-446.67408347,0.00015382,2]
[421512321,1777794644000,-180.21486844,0.00016033,2]
[421512320,1777794644000,-9335.83029258,0.00015998,2]
[421512322,1777794644000,-500.0,0.00016097,2]
[421512319,1777794644000,-500.87370815,0.0001586,2]
[421512316,1777794644000,-500.0,0.0001586,2]
[421512317,1777794644000,-500.0,0.0001586,2]
[421512323,1777794644000,-500.0,0.00016098,2]
[421512313,1777794644000,-151.5,0.00015824,2]
[421512314,1777794644000,-151.5,0.00015824,2]
[421512311,1777794644000,-376.0053232,0.00015797,2]
[421512312,1777794644000,-151.5,0.00015824,2]
[421512310,1777794644000,-2222.02252496,0.00015724,2]
[421512309,1777794644000,-160.0,0.00015608,2]
[421512318,1777794644000,-500.0,0.0001586,2]
[421512324,1777794644000,-500.0,0.00016098,2]
[421512315,1777794644000,-203.41566617,0.00015824,2]
[421512329,1777794644000,-500.0,0.00016098,2]
[421512328,1777794644000,-500.0,0.00016098,2]
[421512340,1777794644000,-9203.50531819,0.00016134,2]
[421512339,1777794644000,-186.45529586,0.00016133,2]
[421512338,1777794644000,-500.0,0.00016098,2]
[421512336,1777794644000,-500.0,0.00016098,2]
[421512335,1777794644000,-500.0,0.00016098,2]
[421512334,1777794644000,-500.0,0.00016098,2]
[421512337,1777794644000,-500.0,0.00016098,2]
[421512331,1777794644000,-500.0,0.00016098,2]
[421512332,1777794644000,-500.0,0.00016098,2]
[421512327,1777794644000,-500.0,0.00016098,2]
[421512330,1777794644000,-500.0,0.00016098,2]
[421512325,1777794644000,-500.0,0.00016098,2]
[421512326,1777794644000,-500.0,0.00016098,2]
[421512333,1777794644000,-500.0,0.00016098,2]
[421512402,1777794646000,-277.66510491,0.00016135,2]
[421512398,1777794646000,-4570.62049485,0.00016134,2]
[421512400,1777794646000,-500.0,0.00016135,2]
[421512412,1777794646000,-1069.0661917,0.00016199,2]
[421512404,1777794646000,-296.24,0.00016135,2]
[421512408,1777794646000,-1278.993636,0.00016199,2]
[421512410,1777794646000,-9115.7388966,0.00016199,2]
[421512406,1777794646000,-2222.02252491,0.00016178,2]
[421512416,1777794647000,-500.0,0.00016235,2]
[421512414,1777794647000,-200.0,0.000162,7]
[421512418,1777794647000,-500.0,0.00016235,2]
[421512423,1777794647000,-500.0,0.00016235,2]
[421512421,1777794647000,-506.33924554,0.00016235,2]
[421512420,1777794647000,-500.0,0.00016235,2]
[421512425,1777794647000,-500.0,0.00016235,2]
[421512433,1777794647000,-2267.35424727,0.00016306,2]
[421512429,1777794647000,-500.0,0.00016236,2]
[421512440,1777794647000,-12167.47779852,0.00016338,2]
[421512431,1777794647000,-387.313,0.000163,2]
[421512435,1777794647000,-838.19125116,0.00016338,2]
[421512438,1777794647000,-253.7425319,0.00016338,2]
[421512448,1777794647000,-927.19930424,0.00016338,2]
[421512427,1777794647000,-500.0,0.00016236,2]
[421512738,1777795153000,161.818701,7.712e-05,2]
[421512737,1777795153000,161.818701,7.069e-05,2]
[421512739,1777795236000,-5000.0,8.271e-05,2]
[421512740,1777795259000,-5000.0,8.271e-05,2]
[421512741,1777795282000,-5000.0,8.271e-05,2]
[421512742,1777795290000,200.0,0.00021087,120]
[421512743,1777795304000,-5000.0,8.271e-05,2]
[421512744,1777795323000,-161.818701,8.354e-05,2]
[421512745,1777795346000,-5000.0,8.271e-05,2]
[421512746,1777795368000,-5000.0,8.271e-05,2]
[421512747,1777795386000,-500.0,8.354e-05,2]
[421512748,1777795410000,200.0,0.00020581,120]
[421512756,1777795636000,3855.12628818,8.01e-05,2]
[421512757,1777795756000,5000.0,8.01e-05,2]
[421512789,1777795832000,-4045.79395608,8.147e-05,2]
[421512793,1777795832000,-82.78994539,8.25e-05,2]
[421512791,1777795832000,-343.18878733,8.147e-05,2]
[421512787,1777795832000,-611.01725659,8.147e-05,2]
[421512809,1777795841000,-118.73942371,8.25e-05,2]
[421512812,1777795841000,-1200.0,8.434e-05,2]
[421512811,1777795841000,-300.0,8.434e-05,2]
[421512813,1777795841000,-300.0,8.435e-05,2]
[421512816,1777795841000,-300.0,8.435e-05,2]
[421512815,1777795841000,-300.0,8.435e-05,2]
[421512814,1777795841000,-300.0,8.435e-05,2]
[421512818,1777795841000,-300.0,8.435e-05,2]
[421512817,1777795841000,-300.0,8.435e-05,2]
[421512819,1777795841000,-300.0,8.435e-05,2]
[421512823,1777795841000,-300.0,8.435e-05,2]
[421512810,1777795841000,-500.0,8.354e-05,2]
[421512821,1777795841000,-300.0,8.435e-05,2]
[421512832,1777795841000,-595.14416346,9.463e-05,2]
[421512830,1777795841000,-161.818701,8.997e-05,2]
[421512831,1777795841000,-295.0,9.277e-05,2]
[421512829,1777795841000,-600.0,8.603e-05,2]
[421512828,1777795841000,-245.6381014,8.435e-05,2]
[421512822,1777795841000,-300.0,8.435e-05,2]
[421512827,1777795841000,-54.3618986,8.435e-05,2]
[421512820,1777795841000,-300.0,8.435e-05,2]
[421512826,1777795841000,-300.0,8.435e-05,2]
[421512825,1777795841000,-300.0,8.435e-05,2]
[421512824,1777795841000,-300.0,8.435e-05,2]
[421512875,1777795843000,-944.85128539,8.167e-05,2]
[421512987,1777795846000,-4055.14871461,8.167e-05,2]
[421512992,1777795847000,-110.80322449,0.0001025,2]
[421512989,1777795847000,-124.85583654,9.463e-05,2]
[421512991,1777795847000,-161.818701,9.64e-05,2]
[421513001,1777795850000,1702.26371008,8.01e-05,2]
[421513002,1777795957000,242.7280563,6.664e-05,2]
[421513017,1777796922000,161.818701,6.2e-05,2]
[421513019,1777796923000,161.818701,7.75e-05,2]
[421513018,1777796923000,161.818701,6.975e-05,2]
[421513045,1777797036000,-5000.0,8.323e-05,2]
[421513048,1777797038000,-199.20495067,8.612e-05,2]
[421513046,1777797038000,-538.0,8.407e-05,2]
[421513047,1777797038000,-161.818701,8.525e-05,2]
[421513151,1777797041000,-300.0,9.017e-05,2]
[421513152,1777797041000,-300.0,9.017e-05,2]
[421513150,1777797041000,-300.0,9.017e-05,2]
[421513148,1777797041000,-300.0,9.017e-05,2]
[421513142,1777797041000,-13.06476898,8.612e-05,2]
[421513146,1777797041000,-300.0,9.017e-05,2]
[421513144,1777797041000,-89.88136239,8.93e-05,2]
[421513145,1777797041000,-134.87455061,8.93e-05,2]
[421513147,1777797041000,-300.0,9.017e-05,2]
[421513153,1777797041000,-300.0,9.017e-05,2]
[421513149,1777797041000,-300.0,9.017e-05,2]
[421513155,1777797041000,-300.0,9.017e-05,2]
[421513143,1777797041000,-738.5797526,8.93e-05,2]
[421513158,1777797041000,-300.0,9.017e-05,2]
[421513159,1777797041000,-300.0,9.017e-05,2]
[421513156,1777797041000,-300.0,9.017e-05,2]
[421513157,1777797041000,-300.0,9.017e-05,2]
[421513162,1777797041000,-151.0,9.548e-05,2]
[421513163,1777797041000,-1281.19607606,0.0001,2]
[421513160,1777797041000,-300.0,9.017e-05,2]
[421513164,1777797041000,-5000.0,0.0001001,2]
[421513154,1777797041000,-300.0,9.017e-05,2]
[421513161,1777797041000,-161.818701,9.3e-05,2]
[421513176,1777797042000,-161.818701,0.00011625,2]
[421513188,1777797042000,-2908.1730594,0.0001346,2]
[421513191,1777797042000,-147.36078939,0.00013699,2]
[421513186,1777797042000,-161.818701,0.00012853,2]
[421513184,1777797042000,-150.56,0.00012599,2]
[421513187,1777797042000,-155.22,0.00012937,2]
[421513185,1777797042000,-288.68681873,0.00012612,2]
[421513174,1777797042000,-161.818701,0.00011567,2]
[421513172,1777797042000,-2514.31405723,0.00011153,2]
[421513182,1777797042000,-2707.90667318,0.00012307,2]
[421513166,1777797042000,-161.818701,0.00010282,2]
[421513168,1777797042000,-161.818701,0.0001085,2]
[421513179,1777797042000,-161.818701,0.0001221,2]
[421513183,1777797042000,-161.818701,0.000124,2]
[421513189,1777797042000,-161.818701,0.00013495,2]
[421513178,1777797042000,-152.16,0.00012144,2]
[421513181,1777797042000,-224.755913,0.00012282,2]
[421513167,1777797042000,-250.47826919,0.00010612,2]
[421513165,1777797042000,-161.818701,0.00010075,2]
[421513170,1777797042000,-161.818701,0.00010925,2]
[421513190,1777797042000,-852.63921061,0.00013699,2]
[421513180,1777797042000,-738.5797526,0.00012282,2]
[421513193,1777797042000,-500.0,0.00013854,2]
[421513212,1777797042000,-224.755913,0.00015635,2]
[421513211,1777797042000,-738.5797526,0.00015635,2]
[421513210,1777797042000,-143.57844217,0.00015634,2]
[421513192,1777797042000,-1000.0,0.00013699,2]
[421513208,1777797042000,-160.0,0.00015238,2]
[421513209,1777797042000,-356.42155783,0.00015634,2]
[421513206,1777797042000,-160.0,0.00015233,2]
[421513207,1777797042000,-160.0,0.00015233,2]
[421513203,1777797042000,-456.159554,0.00014831,2]
[421513201,1777797042000,-325.6399711,0.00014831,2]
[421513213,1777797042000,-418.66130586,0.00015652,2]
[421513202,1777797042000,-456.159554,0.00014831,2]
[421513200,1777797042000,-324.8522766,0.00014831,2]
[421513197,1777797042000,-431.3279213,0.00013974,2]
[421513195,1777797042000,-456.159554,0.00013961,2]
[421513204,1777797042000,-325.6399711,0.00014831,2]
[421513198,1777797042000,-161.818701,0.00014138,2]
[421513205,1777797042000,-456.159554,0.00014831,2]
[421513196,1777797042000,-325.6399711,0.00013961,2]
[421513194,1777797042000,-325.6399711,0.00013961,2]
[421513199,1777797042000,-326.89536826,0.00014612,2]
[421513230,1777797044000,-151.0,0.00016,2]
[421513227,1777797044000,-500.0,0.00015997,2]
[421513236,1777797044000,-500.0,0.00016134,2]
[421513225,1777797044000,-442.0,0.00015983,2]
[421513226,1777797044000,-185.0,0.00015983,2]
[421513221,1777797044000,-456.06,0.00015896,2]
[421513217,1777797044000,-36.12528879,0.00015659,2]
[421513222,1777797044000,-500.46218818,0.00015897,2]
[421513223,1777797044000,-500.0,0.00015897,2]
[421513220,1777797044000,-163.87471121,0.00015659,2]
[421513215,1777797044000,-81.33869414,0.00015652,2]
[421513216,1777797044000,-500.0,0.00015652,2]
[421513224,1777797044000,-600.0,0.00015916,2]
[421513228,1777797044000,-500.0,0.00015997,2]
[421513235,1777797044000,-500.0,0.00016134,2]
[421513232,1777797044000,-151.0,0.000161,2]
[421513234,1777797044000,-325.0,0.00016134,2]
[421513245,1777797044000,-350.49406758,0.00016134,2]
[421513241,1777797044000,-500.0,0.00016134,2]
[421513246,1777797044000,-301.75593242,0.00016134,2]
[421513242,1777797044000,-196.50593242,0.00016134,2]
[421513244,1777797044000,-149.50593242,0.00016134,2]
[421513240,1777797044000,-500.0,0.00016134,2]
[421513243,1777797044000,-303.49406758,0.00016134,2]
[421513238,1777797044000,-220.64673228,0.00016134,2]
[421513237,1777797044000,-500.0,0.00016134,2]
[421513229,1777797044000,-297.6788406,0.00015997,2]
[421513231,1777797044000,-2002.1181244,0.00016,2]
[421513233,1777797044000,-151.0,0.000161,2]
[421513239,1777797044000,-500.0,0.00016134,2]
[421513263,1777797047000,-500.0,0.00016134,2]
[421513275,1777797047000,-500.0,0.00016134,2]
[421513267,1777797047000,-500.0,0.00016134,2]
[421513266,1777797047000,-423.87399958,0.00016134,2]
[421513261,1777797047000,-500.0,0.00016134,2]
[421513262,1777797047000,-220.02184465,0.00016134,2]
[421513264,1777797047000,-500.0,0.00016134,2]
[421513254,1777797047000,-198.24406758,0.00016134,2]
[421513258,1777797047000,-500.0,0.00016134,2]
[421513260,1777797047000,-500.0,0.00016134,2]
[421513256,1777797047000,-42.28048604,0.00016134,2]
[421513259,1777797047000,-185.25389981,0.00016134,2]
[421513253,1777797047000,-287.36,0.00016126,2]
[421513255,1777797047000,-499.11418402,0.00016134,2]
[421513276,1777797047000,-500.0,0.00016134,2]
[421513265,1777797047000,-500.0,0.00016134,2]
[421513274,1777797047000,-500.0,0.00016134,2]
[421513257,1777797047000,-500.0,0.00016134,2]
[421513269,1777797047000,-641.60173198,0.00016134,2]
[421513272,1777797047000,-500.0,0.00016134,2]
[421513280,1777797047000,-176.99013217,0.00016135,2]
[421513281,1777797047000,-377.94569738,0.00016135,2]
[421513283,1777797047000,-500.0,0.00016135,2]
[421513285,1777797047000,-273.19808614,0.00016135,2]
[421513284,1777797047000,-500.0,0.00016135,2]
[421513287,1777797047000,-500.0,0.00016135,2]
[421513279,1777797047000,-323.00986783,0.00016135,2]
[421513282,1777797047000,-500.0,0.00016135,2]
[421513286,1777797047000,-500.0,0.00016135,2]
[421513288,1777797047000,-637.84073925,0.00016135,2]
[421513277,1777797047000,-500.0,0.00016134,2]
[421513278,1777797047000,-5000.0,0.00016135,2]
[421513271,1777797047000,-500.0,0.00016134,2]
[421513270,1777797047000,-500.0,0.00016134,2]
[421513273,1777797047000,-500.0,0.00016134,2]
[421513268,1777797047000,-500.0,0.00016134,2]
[421513289,1777797047000,-427.84652465,0.00016135,2]
[421513290,1777797052000,5830.62478607,7.6e-05,2]
[421513343,1777798231000,-669.76949066,8.104e-05,2]
[421513340,1777798231000,-2440.17514338,8.104e-05,2]
[421513341,1777798231000,-438.23496928,8.104e-05,2]
[421513339,1777798231000,-908.06644971,8.104e-05,2]
[421513344,1777798231000,-534.0,8.104e-05,2]
[421513342,1777798231000,-543.75394697,8.104e-05,2]
[421513346,1777798231000,-1006.81783792,8.186e-05,2]
[421513351,1777798231000,-1601.95963714,8.269e-05,2]
[421513350,1777798231000,-2183.02189702,8.269e-05,2]
[421513347,1777798231000,-641.1351178,8.186e-05,2]
[421513349,1777798231000,-9.46022989,8.268e-05,2]
[421513345,1777798231000,-2639.4126679,8.186e-05,2]
[421513348,1777798231000,-290.53977011,8.268e-05,2]
[421513354,1777798232000,-2167.19413998,9.425e-05,2]
[421513353,1777798232000,-25130.10671799,9.425e-05,2]
[421513352,1777798232000,-205.90217822,8.48e-05,2]
[421513407,1777798238000,-300.0,9.612e-05,2]
[421513399,1777798238000,-8044.4926111,9.425e-05,2]
[421513402,1777798238000,-300.0,9.612e-05,2]
[421513398,1777798238000,-5000.0,9.331e-05,2]
[421513400,1777798238000,-300.0,9.612e-05,2]
[421513403,1777798238000,-300.0,9.612e-05,2]
[421513401,1777798238000,-300.0,9.612e-05,2]
[421513406,1777798238000,-300.0,9.612e-05,2]
[421513404,1777798238000,-300.0,9.612e-05,2]
[421513408,1777798238000,-300.0,9.612e-05,2]
[421513413,1777798238000,-300.0,9.612e-05,2]
[421513410,1777798238000,-300.0,9.612e-05,2]
[421513412,1777798238000,-300.0,9.612e-05,2]
[421513414,1777798238000,-200.62258969,9.612e-05,2]
[421513411,1777798238000,-300.0,9.612e-05,2]
[421513409,1777798238000,-300.0,9.612e-05,2]
[421513405,1777798238000,-300.0,9.612e-05,2]
[421513421,1777798240000,-99.37741031,9.612e-05,2]
[421513423,1777798240000,-460.17797022,9.999e-05,2]
[421513424,1777798240000,-76.8422847,9.999e-05,2]
[421513422,1777798240000,-600.0,9.803e-05,2]
[421513445,1777798246000,-615.7105189,9.999e-05,2]
[421513443,1777798246000,-81.36593748,9.999e-05,2]
[421513444,1777798246000,-357.78020496,9.999e-05,2]
[421513446,1777798246000,-5237.35001526,0.0001,2]
[421513447,1777798246000,-3870.078471,0.0001,2]
[421513452,1777798246000,-229.83432848,0.00012213,2]
[421513448,1777798246000,-242.9645703,0.0001048,2]
[421513450,1777798246000,-253.33151259,0.00010784,2]
[421513451,1777798246000,-864.0,0.00011862,2]
[421513454,1777798246000,-1445.06351888,0.000129,2]
[421513453,1777798246000,-280.02696238,0.0001248,2]
[421513449,1777798246000,-466.66848741,0.00010784,2]
[421513455,1777798493000,215.7904054,0.00021917,120]
[421513456,1777798613000,159.03604929,0.00017451,120]
[421513458,1777798855000,-2279.02172515,9.148e-05,2]
[421513496,1777799432000,-3919.0,8.611e-05,2]
[421513498,1777799432000,-1081.0,8.611e-05,2]
[421513499,1777799432000,-36.43519046,8.611e-05,2]
[421513500,1777799432000,-504.56480954,8.611e-05,2]
[421513503,1777799432000,-171.92698817,8.698e-05,2]
[421513502,1777799432000,-991.33537934,8.697e-05,2]
[421513501,1777799432000,-208.66462066,8.697e-05,2]
[421513539,1777799438000,-300.0,9.522e-05,2]
[421513540,1777799438000,-300.0,9.522e-05,2]
[421513541,1777799438000,-300.0,9.522e-05,2]
[421513542,1777799438000,-300.0,9.522e-05,2]
[421513557,1777799438000,-500.0,0.000129,2]
[421513543,1777799438000,-300.0,9.522e-05,2]
[421513545,1777799438000,-420.0,9.761e-05,2]
[421513547,1777799438000,-1251.5165425,0.0001,2]
[421513552,1777799438000,-720.0,0.00011219,2]
[421513544,1777799438000,-1680.0,9.567e-05,2]
[421513546,1777799438000,-420.0,9.761e-05,2]
[421513549,1777799438000,-1319.0,0.00010523,2]
[421513553,1777799438000,-251.14791539,0.00011493,2]
[421513551,1777799438000,-264.44328676,0.00010742,2]
[421513550,1777799438000,-587.0,0.00010738,2]
[421513536,1777799438000,-300.0,9.522e-05,2]
[421513555,1777799438000,-864.0,0.00012341,2]
[421513556,1777799438000,-304.78209321,0.00012742,2]
[421513548,1777799438000,-600.0,0.00010199,2]
[421513535,1777799438000,-300.0,9.522e-05,2]
[421513527,1777799438000,-424.0611996,9.43e-05,2]
[421513537,1777799438000,-300.0,9.522e-05,2]
[421513516,1777799438000,-2933.66362532,8.611e-05,2]
[421513515,1777799438000,-990.72703622,8.611e-05,2]
[421513517,1777799438000,-224.1044803,8.742e-05,2]
[421513518,1777799438000,-300.0,8.874e-05,2]
[421513519,1777799438000,-300.0,8.874e-05,2]
[421513520,1777799438000,-300.0,8.874e-05,2]
[421513521,1777799438000,-300.0,8.874e-05,2]
[421513522,1777799438000,-500.0,9.24e-05,2]
[421513538,1777799438000,-300.0,9.522e-05,2]
[421513523,1777799438000,-35384.66531306,9.405e-05,2]
[421513524,1777799438000,-738.5797526,9.405e-05,2]
[421513525,1777799438000,-224.755913,9.405e-05,2]
[421513528,1777799438000,-300.0,9.522e-05,2]
[421513529,1777799438000,-300.0,9.522e-05,2]
[421513530,1777799438000,-300.0,9.522e-05,2]
[421513532,1777799438000,-300.0,9.522e-05,2]
[421513534,1777799438000,-300.0,9.522e-05,2]
[421513533,1777799438000,-300.0,9.522e-05,2]
[421513526,1777799438000,-212.0305998,9.43e-05,2]
[421513560,1777799438000,-4690.10286848,0.000129,2]
[421513572,1777799438000,-500.0,0.00013698,2]
[421513558,1777799438000,-4690.10286848,0.000129,2]
[421513586,1777799438000,-500.0,0.00013698,2]
[421513580,1777799438000,-570.70586884,0.00013698,2]
[421513585,1777799438000,-500.0,0.00013698,2]
[421513584,1777799438000,-500.0,0.00013698,2]
[421513587,1777799438000,-500.0,0.00013698,2]
[421513590,1777799438000,-959.51730529,0.00013699,2]
[421513588,1777799438000,-1000.0,0.00013699,2]
[421513589,1777799438000,-40.48269471,0.00013699,2]
[421513582,1777799438000,-500.0,0.00013698,2]
[421513591,1777799438000,-481.63722783,0.00014,2]
[421513593,1777799438000,-152.74,0.00014273,2]
[421513594,1777799438000,-481.63722783,0.000143,2]
[421513596,1777799438000,-152.89,0.0001444,2]
[421513598,1777799438000,-345.12089967,0.00014742,2]
[421513599,1777799438000,-151.0,0.00014762,2]
[421513597,1777799438000,-481.63722783,0.000146,2]
[421513600,1777799438000,-456.0406255,0.00014762,2]
[421513554,1777799438000,-600.0,0.00011811,2]
[421513592,1777799438000,-481.63722783,0.000141,2]
[421513583,1777799438000,-500.0,0.00013698,2]
[421513595,1777799438000,-481.63722783,0.000144,2]
[421513577,1777799438000,-269.16933368,0.00013698,2]
[421513581,1777799438000,-500.0,0.00013698,2]
[421513559,1777799438000,-4690.10286848,0.000129,2]
[421513563,1777799438000,-160.0,0.0001329,2]